Cogmind - Beta 13 @@@ ROGUE MODE // 2024.04.27 @ 12:07:05 Player: SovietPaperclip Result: Self-destructed Performance ------------- Evolutions (1) 500 Regions Visited (3) 600 Robots Destroyed (27) 135 Value Destroyed (542) 542 Prototype IDs (1) 20 Alien Tech Used (0) 0 Bonus (0) 0 TOTAL SCORE: 1797 Bonus ------- None Cogmind --------- Core Integrity 301/400 Matter 82/300 Energy 250/250 System Corruption 0% Temperature Cool (0) Movement Treading (320) Ox2 Location -9/Materials Parts ------- > --- POWER (1) -------- Ion Engine > --- PROPULSION (3) --- Light Treads Light Treads > --- UTILITY (3) ------ Huge Storage Unit > --- WEAPON (2) ------- Heavy Assault Rifle Heavy Assault Rifle > --- INVENTORY (25) --- Light Ion Engine High-powered Tractor Beam Heavy Particle Cannon Heavy Particle Cannon Heavy Particle Cannon Heavy Particle Cannon Heavy Assault Rifle Grenade Launcher Peak State ------------ > --- POWER ------------ Ion Engine > --- PROPULSION ------- Light Treads Light Treads Light Treads > --- UTILITY ---------- Huge Storage Unit > --- WEAPON ----------- Heavy Assault Rifle Advanced EMP Blaster > --- INVENTORY -------- Light Ion Engine Light Treads High-powered Tractor Beam Heavy Assault Rifle Heavy Assault Rifle Grenade Launcher [Rating: 11] Favorites ----------- Power Ion Engine Engine Ion Engine Propulsion Light Treads Treads Light Treads Utility Light Armor Plating Storage High-capacity Storage Unit Protection Light Armor Plating Weapon Heavy Assault Rifle Energy Gun EM Pulse Gun Ballistic Gun Heavy Assault Rifle Launcher Advanced EMP Blaster Build | -11 -10 -10 -9 ------- Run | Yrd Mat Min Mat Slots Evolved 2 | . . . 2 Power . | . . . . Propulsion 1 | . . . 1 Utility 1 | . . . 1 Weapon . | . . . . Parts Attached 18 | 6 5 . 7 Power 1 | 1 . . . Engine 1 | 1 . . . Core . | . . . . Reactor . | . . . . Propulsion 4 | 2 . . 2 Treads 4 | 2 . . 2 Leg . | . . . . Wheel . | . . . . Hover . | . . . . Flight . | . . . . Utility 5 | 1 3 . 1 Device . | . . . . Storage 4 | 1 2 . 1 Processor . | . . . . Hackware . | . . . . Protection 1 | . 1 . . Artifact . | . . . . Weapon 8 | 2 2 . 4 Energy Gun 2 | 2 . . . Energy Cannon . | . . . . Ballistic Gun 5 | . 2 . 3 Ballistic Cannon . | . . . . Launcher 1 | . . . 1 Special Weapon . | . . . . Impact Weapon . | . . . . Slashing Weapon . | . . . . Piercing Weapon . | . . . . Special Melee Weapon . | . . . . Unidentified Prototypes 1 | . . . 1 Parts Lost 5 | . . . 5 Power . | . . . . Propulsion 2 | . . . 2 Utility 1 | . . . 1 Weapon 2 | . . . 2 Highest Loss Streak 2 | . . . 2 To Critical Strikes . | . . . . Average Slot Usage (%) 86 | . 96 100 72 Engine 12 | . 14 14 11 Treads 27 | . 28 28 26 Storage 12 | . 14 14 11 Protection 7 | . 10 14 1 Energy Gun 1 | . 5 . . Ballistic Gun 23 | . 22 28 22 Naked Turns . | . . . . Heaviest Build 91 | 14 54 54 91 Greatest Support 60 | 40 40 40 60 Greatest Overweight (x) 2 | . 1 1 2 Average Overweight (x) . | . . 1 . Largest Inventory Capacity 25 | 8 20 20 25 Average Capacity 19 | 6 15 20 22 Most Carried 9 | 1 6 5 9 Average Carried 5 | . 4 5 6 Final Capacity 25 | 8 20 20 25 Final Carried 8 | 1 5 5 8 Class Distribution -------------------- 100% | Mutant Dominant Class ---------------- Mutant | -10/Materials Mutant | -10/Mines Mutant | -9/Materials Resources | -11 -10 -10 -9 ----------- Run | Yrd Mat Min Mat Matter Collected 554 | 213 144 30 167 Remotely . | . . . . Salvage Created 836 | . 426 43 367 Parts 67 | . 37 7 23 Haulers Intercepted . | . . . . Recyclers Shooed . | . . . . Parts Field Recycled . | . . . . Retrieved Matter . | . . . . Parts Self-Destructed . | . . . . Prevented . | . . . . Kills | -11 -10 -10 -9 ------- Run | Yrd Mat Min Mat Combat Hostiles Destroyed 19 | . 7 3 9 Guns 19 | . 7 3 9 Classes Destroyed 8 | . 7 . 1 Worker 2 | . 2 . . Builder 2 | . 1 . 1 Recycler 1 | . 1 . . Operator 1 | . 1 . . Watcher 2 | . 2 . . Swarmer 9 | . 3 3 3 Grunt 7 | . 4 . 3 Sentry 3 | . . . 3 Best Kill Streak 9 | . 9 3 4 Combat Bots Only 4 | . 4 3 4 Max Kills in Single Turn 2 | . 2 1 1 Gunslinging 1 | . 1 . . Exploded . | . . . . Melee . | . . . . Uniques/NPCs Destroyed . | . . . . Combat | -11 -10 -10 -9 -------- Run | Yrd Mat Min Mat Hostile Shots Fired 143 | . 42 14 87 Missed 39 | . 12 5 22 Damage Taken 1118 | . 263 73 782 Core 143 | . 25 19 99 Absorbed by Shields . | . . . . Core Remaining (%) 91 | 100 . 82 . Volleys Fired 70 | . 26 6 38 Largest 2 | . 2 2 2 Hottest 46 | . 46 46 46 Shots Fired 139 | . 52 12 75 Gun 139 | . 52 12 75 Cannon . | . . . . Launcher . | . . . . Special . | . . . . Kinetic 139 | . 52 12 75 Thermal . | . . . . Explosive . | . . . . Electromagnetic . | . . . . Robot Hit Streak 12 | . 5 2 12 Robot Miss Streak 8 | . 6 8 3 Penetration Max . | . . . . Secondary Targets 5 | . 3 1 1 Max Gunslinging Chain 1 | . 1 1 1 Shots Hit Robots 80 | . 25 3 52 Core Hits 33 | . 15 3 15 Critical Kills 1 | . . . 1 Critical Parts Destroyed 1 | . . . 1 Critical Strikes 2 | . . . 2 Destroy 2 | . . . 2 Melee Attacks . | . . . . Impact . | . . . . Slashing . | . . . . Piercing . | . . . . Sneak Attacks . | . . . . Combat Hostiles . | . . . . Follow-up Attacks . | . . . . Damage Inflicted 1381 | . 468 69 844 Guns 1381 | . 468 69 844 Cannons . | . . . . Explosions . | . . . . Melee . | . . . . Ramming . | . . . . Kinetic 1381 | . 468 69 844 Thermal . | . . . . Explosive . | . . . . Electromagnetic . | . . . . Impact . | . . . . Slashing . | . . . . Piercing . | . . . . Highest Corruption . | . . . . Average Corruption . | . . . . Corruption Purged . | . . . . Corruption Blocked . | . . . . Overload Shots . | . . . . Overflow Damage . | . . . . Projectiles . | . . . . Explosions . | . . . . Melee . | . . . . Knockbacks . | . . . . Impact . | . . . . Kinetic . | . . . . Secondary . | . . . . Self-Inflicted Damage . | . . . . Shots . | . . . . Rammed . | . . . . Targets Rammed . | . . . . Kicked . | . . . . Crushed . | . . . . Highest Temperature 14 | . 14 . 7 Average Temperature 5 | . 6 . 2 Received Heat Transfer 213 | . 66 . 147 Siege Activations . | . . . . Robots Corrupted . | . . . . Combat Hostiles . | . . . . Parts Fried . | . . . . Impact Corruptions . | . . . . Robots Melted . | . . . . Combat Hostiles . | . . . . Parts Melted . | . . . . Heat Transferred . | . . . . Parts Sabotaged . | . . . . Parts Stolen . | . . . . Parts Stripped . | . . . . Power Chain Reactions . | . . . . Alert | -11 -10 -10 -9 ------- Run | Yrd Mat Min Mat Peak Influence 251 | . 132 107 251 Initial 41 | . . 37 41 Average 96 | . 52 63 154 Maximum Alert Level 1 | . . . 1 Low Security (%) 77 | 100 100 100 48 Level 1 22 | . . . 51 Level 2 . | . . . . Level 3 . | . . . . Level 4 . | . . . . Level 5 . | . . . . High Security . | . . . . Max Security . | . . . . Squads Dispatched 2 | . 2 . . Investigation 1 | . 1 . . Extermination . | . . . . Reinforcement 1 | . 1 . . Assault . | . . . . Garrison . | . . . . Intercept . | . . . . Searches Triggered . | . . . . Construction Impeded . | . . . . Haulers Reinforced . | . . . . Active Scanning Responses . | . . . . Cargo Convoy Interrupts . | . . . . Stealth | -11 -10 -10 -9 --------- Run | Yrd Mat Min Mat Distress Signals 2 | . 1 . 1 Communications Jammed . | . . . . Distress Signals . | . . . . Times Spotted 31 | . 12 3 16 Peak Tracking Total 6 | . 4 3 6 Tactical Retreats 2 | . . . 2 Traps | -11 -10 -10 -9 ------- Run | Yrd Mat Min Mat Traps Triggered 3 | . 1 . 2 Indirectly . | . . . . Trap Hack Attempts . | . . . . Triggered . | . . . . Disarmed . | . . . . Reprogrammed . | . . . . Reused . | . . . . Traps Extracted . | . . . . Installed . | . . . . Triggered . | . . . . Machines | -11 -10 -10 -9 ---------- Run | Yrd Mat Min Mat Machines Disabled . | . . . . Max in Single Turn . | . . . . Machines Repaired . | . . . . Machines Dismantled . | . . . . Machines Sabotaged . | . . . . Overloaded Fab Kills . | . . . . Hacking | -11 -10 -10 -9 --------- Run | Yrd Mat Min Mat Machines Accessed 3 | . 2 . 1 Terminals 3 | . 2 . 1 Fabricators . | . . . . Repair Stations . | . . . . Recycling Units . | . . . . Scanalyzers . | . . . . Garrison Access . | . . . . Total Hacks 7 | . 3 . 4 Successful 2 | . 2 . . Failed 5 | . 1 . 4 Catastrophic . | . . . . Database Lockouts . | . . . . Manual 6 | . 2 . 4 Terminals 7 | . 3 . 4 Fabricators . | . . . . Repair Stations . | . . . . Recycling Units . | . . . . Scanalyzers . | . . . . Garrison Access . | . . . . Terminal Hacks 1 | . 1 . . Unreport Threat 1 | . 1 . . Fabricator Hacks . | . . . . Repair Station Hacks . | . . . . Recycling Unit Hacks . | . . . . Scanalyzer . | . . . . Garrison Access Hacks . | . . . . Unauthorized Hacks 1 | . 1 . . Terminals 1 | . 1 . . Botnet 1 | . 1 . . Fabricators . | . . . . Repair Stations . | . . . . Recycling Units . | . . . . Scanalyzers . | . . . . Garrison Access . | . . . . Data Cores Recovered . | . . . . Used . | . . . . Hacking Detections 1 | . . . 1 Full Trace Events 1 | . . . 1 Feedback Events . | . . . . Feedback Blocked . | . . . . Robot Schematics Acquired . | . . . . Robots Built . | . . . . Authchips . | . . . . Time . | . . . . Total Robot Build Rating . | . . . . Part Schematics Acquired . | . . . . Parts Built . | . . . . Authchips . | . . . . Time . | . . . . Total Part Build Rating . | . . . . Parts Repaired . | . . . . Time . | . . . . Parts Recycled . | . . . . Recycled Matter . | . . . . Retrieved Matter . | . . . . Retrieved Components . | . . . . Parts Scanalyzed . | . . . . Part Schematics Acquired . | . . . . Parts Damaged . | . . . . Bothacking | -11 -10 -10 -9 ------------ Run | Yrd Mat Min Mat Used RIF Installer . | . . . . Robots Hacked . | . . . . Non-combat . | . . . . Combat . | . . . . Robot Hacks Applied . | . . . . Relay Couplers Released . | . . . . Fabnet Peak Effective % . | . . . . Robots Rewired . | . . . . Allies Hacked . | . . . . Hacks Repelled . | . . . . Allies | -11 -10 -10 -9 -------- Run | Yrd Mat Min Mat Total Allies . | . . . . Largest Group . | . . . . Highest-Rated Group . | . . . . Highest-Rated Ally . | . . . . Total Orders . | . . . . Ally Attacks . | . . . . Total Damage . | . . . . Kills . | . . . . Allies Corrupted . | . . . . Allies Melted . | . . . . Intel | -11 -10 -10 -9 ------- Run | Yrd Mat Min Mat Robot Analysis Total . | . . . . Derelict Logs Recovered 1 | . . 1 . Drone Launches . | . . . . Drone Recoveries . | . . . . Exploration | -11 -10 -10 -9 ------------- Run | Yrd Mat Min Mat Turns Passed 1216 | 66 340 282 528 Spaces Moved 464 | 39 147 111 167 Core 5 | 5 . . . Treads 459 | 34 147 111 167 Legs . | . . . . Wheels . | . . . . Hover . | . . . . Flight . | . . . . Fastest Speed 50 | 50 160 240 160 Average Speed 205 | 145 169 240 227 Slowest Speed 320 | 160 240 240 320 Overloaded Moves . | . . . . Propulsion Burnouts . | . . . . Robots Hopped . | . . . . Cave-ins Triggered . | . . . . Exploration Rate (%) 26 | 4 38 37 25 Regions Visited 3 Branch Regions 1 Pre-discovered Areas . | . . . . Known Exits Taken . | . . . . Unknown Exits Taken 3 | 1 1 1 . Scrap Searched . | . . . . Spaces Dug . | . . . . Terrain Destroyed . | . . . . Melee . | . . . . Projectile . | . . . . AOE . | . . . . Terrain Rammed . | . . . . Walls Destroyed . | . . . . Machines Disabled . | . . . . Actions | -11 -10 -10 -9 --------- Run | Yrd Mat Min Mat Total 589 | 46 187 116 240 Wait 19 | . . . 19 Move 461 | 38 146 110 167 Hop . | . . . . Pick Up 14 | 2 6 . 6 Fast Attach 10 | 5 2 . 3 Attach 7 | 1 2 . 4 Detach 1 | . . . 1 Swap 1 | . 1 . . Drop 6 | . 4 . 2 Fire 70 | . 26 6 38 Melee . | . . . . Ram . | . . . . Kick . | . . . . Crush . | . . . . Escape Stasis . | . . . . Rewire . | . . . . Trap . | . . . . Miscellaneous . | . . . . Route ------- -11/Scrapyard -10/Materials -10/Mines -9/Materials History --------- Turn | Location | Event 2 | -11/Scrapyard | Met Revision 17 17 | -11/Scrapyard | Discovered new exit (range 16) 67 | -11/Scrapyard | Entered Materials 311 | -10/Materials | Build established: Mutant 312 | -10/Materials | Discovered new exit (range 9) 407 | -10/Materials | Entered Mines 414 | -10/Mines | Met a Derelict bent on vengeance 439 | -10/Mines | Learned Materials stockpile data 677 | -10/Mines | Discovered new exit (range 5) 689 | -10/Mines | Entered Materials 689 | -9/Materials | Evolved 2 slots: Propulsion x1, Utility x1 1217 | -9/Materials | Self-destructed Last Messages --------------- 01061_ Acquired Prototype Launcher. 01061_ Identified Adv. EMP Blaster. 01062_ Dropped Adv. EMP Blaster. 01066_ Acquired Hvy. Particle Cannon. 01093_ Lgt. Treads destroyed. 01109_ Destroyed Lgt. Ion Engine. 01112_ Destroyed Flight Unit. 01115_ S-10 Pest destroyed. 01123_ Lgt. Treads destroyed. 01133_ S-10 Pest destroyed. 01153_ Acquired 16 matter. 01156_ Acquired 10 matter. 01164_ K-01 Serf collects debris. 01166_ Acquired 13 matter. 01167_ K-01 Serf collects debris. 01185_ Connecting with Terminal... 01185_ Current location identified: Materials 01194_ Destroyed Hover Unit. 01199_ R-06 Scavenger collects Flight Unit. 01214_ W-16 Scout sends out distress signal. Map ----- +----------------------------------------------------+ | ?????????????????????????????????????????????????? | | ?????????????????????????????????????????????????? | | ?????????????????????????????????????????????????? | | ?????????????????????????????????????????????????? | | ?????????????????????????????????????????????????? | | ?????????????????????????????????????????????????? | | ?????????????????????????????????????????????????? | | ?????????????????????????????????????????????????? | | ?????????????????????????????????????????????????? | | ?????????????????????????????????????????????????? | | ?????????????????????????????????????????????????? | | ?????????????????????????????????????????????????? | | ?????????????????????????#+#?????????????????????? | | ????????????????????????? ?????????????????????? | | ????????????????????????? ?????????????????????? | | ????????????????????????? ^ ???? ????????????????? | | ????????????????????????? """ ?????????????????? | | ????????????????????????# """ ?????????????????? | | ????????????????????????# """ ?????????????????? | | ????????????????????????# ?#???????????????? | | ???????????????########## +???????????????? | | ???????????????# # """ #???????????????? | | ???????????????# # """ #???????????????? | | ???########????# # """ #???????????????? | | ???#[[]] #????# # #???????????????? | | ???#[[]] #????# /@ u ????????? | | ???# #????# r # ????????? | | ???###### ###### # "T" ????????? | | ????????# + # """ ###### ?????????? | | ????????# #### * #w #???????????????? | | ######### #??#######+## ????????????????? | | #????# # t######???????????????? | | #########^ ^#????# # #????????????????????? | | ???????? #???#"" # #????????????????????? | | ???????# [%! #???#"T # ss#????????????????????? | | ???????# #???#"" / s/????????????????????? | | ???????# #???# # #????????????????????? | | ???????# #???######## #????????????????????? | | ???????### ###??????????? ????????????????????? | | ?????????# #????????????? ????????????????????? | | ?????????# #????????????? t ????????????????????? | | ?????????? #???????????????? "???????????????????? | | ?????????? #?????????????????!!??????????????????? | | #+???????? #??????????????????"??????????????????? | | ??????? ??????????????????????????????????????? | | ?????????? ??????????????????????????????????????? | | ?????????????????????????????????????????????????? | | ?????????????????????????????????????????????????? | | ?????????????????????????????????????????????????? | | ?????????????????????????????????????????????????? | +----------------------------------------------------+ Best States ------------- Heat Dissipation 28 Energy Generation 10 Energy Capacity 250 Matter Stores 253 Matter Capacity 300 Sight Range 16 Terrain Scan Density 10 Armor Coverage 150 Evasion (%) 40 Recoil Reduction 3 Item Schematics ----------------- None Robot Schematics ------------------ None Fabricated ------------ Nothing Alien Tech Used ----------------- None Achievements -------------- None Challenges ------------ None Game ------ Seed AlertShadingExtractor Manual? 0 Play Time 00:06:15 Cumulative 113.9 hours Start 2024.04.26 @ 19:10:52 End 2024.04.27 @ 12:07:05 Sessions 3 Manual Loads 0 Difficulty Rogue Special Mode None Game No. 146 Rogue 146 Adventurer 0 Explorer 0 Win Type - Total 1 Types 1/0/0/0/0/0/0/0/0 Lore% 48 Gallery% 52 Achievement% 50 Wizard Run 0 Options --------- Layout 1 ASCII 0 Keyboard 0 Movement Mouse Keybinds 0 Fullscreen 2 Font 32/Smallcaps Map View 50x40 Zoom Use 0% Tactical HUD 1 Map Filters NONE Filters NONE Steam 1 RUN: c5a8e2ca-55c5-43eb-92bf-7bb3a8cd5412